fUSD/lending_fUSD_20251017
["ID","MTS","AMOUNT","RATE_DAILY","PERIOD"]
[391647651,1760716300515,-500.0,0.00026027,2]
[391647652,1760716300525,-500.0,0.00026027,2]
[391647653,1760716300534,-500.0,0.00026027,2]
[391647654,1760716300544,-500.0,0.00026027,2]
[391647655,1760716300553,-1222.84,0.00026027,2]
[391647656,1760716300562,-2109.95,0.00026027,2]
[391647657,1760716300571,-751.84,0.00026027,2]
[391647658,1760716300582,-500.0,0.00026027,2]
[391647659,1760716300591,-500.0,0.00026027,2]
[391647660,1760716300605,-500.0,0.00026027,2]
[391647661,1760716300614,-500.0,0.00026027,2]
[391647662,1760716300623,-1024.46,0.00026027,2]
[391647663,1760716300633,-620.33053097,0.00026027,2]
[391647664,1760716300642,-833.66,0.00026027,2]
[391647665,1760716300653,-1852.0,0.00026027,2]
[391647666,1760716300663,-500.0,0.00026027,2]
[391647667,1760716300673,-500.0,0.00026027,2]
[391647668,1760716300682,-500.0,0.00026027,2]
[391647669,1760716300692,-500.0,0.00026027,2]
[391647670,1760716300702,-500.0,0.00026027,2]
[391647671,1760716300711,-625.75762143,0.00026027,2]
[391647672,1760716300721,-2060.09,0.00026027,2]
[391647673,1760716300733,-500.0,0.00026027,2]
[391647674,1760716300742,-500.0,0.00026027,2]
[391647675,1760716300751,-500.0,0.00026027,2]
[391647676,1760716300761,-500.0,0.00026027,2]
[391647677,1760716300771,-500.0,0.00026027,2]
[391647678,1760716300780,-500.0,0.00026027,2]
[391647679,1760716300790,-529.49,0.00026027,2]
[391647680,1760716300799,-500.0,0.00026027,2]
[391647681,1760716300809,-500.0,0.00026027,2]
[391647682,1760716300819,-1709.46,0.00026027,2]
[391647683,1760716300829,-712.66,0.00026027,2]
[391647684,1760716300839,-500.0,0.00026027,2]
[391647685,1760716300852,-500.0,0.00026027,2]
[391647686,1760716300862,-500.0,0.00026027,2]
[391647687,1760716300871,-609.73,0.00026027,2]
[391647688,1760716300881,-500.0,0.00026027,2]
[391647689,1760716300891,-1708.64,0.00026027,2]
[391647690,1760716300900,-1031.44,0.00026027,2]
[391647691,1760716300910,-500.0,0.00026027,2]
[391647692,1760716300919,-500.0,0.00026027,2]
[391647693,1760716300929,-500.0,0.00026027,2]
[391647694,1760716300939,-500.0,0.00026027,2]
[391647695,1760716300949,-500.0,0.00026027,2]
[391647696,1760716300958,-500.0,0.00026027,2]
[391647697,1760716300967,-500.0,0.00026027,2]
[391647698,1760716300977,-559.04,0.00026027,2]
[391647699,1760716300988,-367.4053666,0.00026027,2]
[391647700,1760716300998,-500.0,0.00026027,2]
[391647701,1760716301008,-546.85,0.00026027,2]
[391647702,1760716301017,-500.0,0.00026027,2]
[391647703,1760716301027,-236.70809085,0.00026027,2]
[391647704,1760716301037,-500.0,0.00026027,2]
[391647705,1760716301046,-500.0,0.00026027,2]
[391647706,1760716301055,-500.0,0.00026027,2]
[391647707,1760716301064,-500.0,0.00026027,2]
[391647708,1760716301074,-500.0,0.00026027,2]
[391647709,1760716301088,-500.0,0.00026027,2]
[391647710,1760716301103,-500.0,0.00026027,2]
[391647711,1760716301113,-500.0,0.00026027,2]
[391647712,1760716301122,-500.0,0.00026027,2]
[391647713,1760716301131,-502.4,0.00026027,2]
[391647714,1760716301141,-500.0,0.00026027,2]
[391647715,1760716301150,-500.0,0.00026027,2]
[391647716,1760716301160,-500.0,0.00026027,2]
[391647717,1760716301170,-500.0,0.00026027,2]
[391647718,1760716301182,-619.47,0.00026027,2]
[391647719,1760716301193,-667.35,0.00026027,2]
[391647720,1760716301202,-1012.0,0.00026027,2]
[391647721,1760716301212,-2301.51,0.00026027,2]
[391647722,1760716301222,-1812.54,0.00026027,2]
[391647723,1760716301232,-500.0,0.00026027,2]
[391647724,1760716301242,-500.0,0.00026027,2]
[391647725,1760716301252,-1000.0,0.00026027,2]
[391647726,1760716301262,-500.0,0.00026027,2]
[391647727,1760716301272,-843.1,0.00026027,2]
[391647728,1760716301282,-500.0,0.00026027,2]
[391647729,1760716301292,-1602.13,0.00026027,2]
[391647730,1760716301301,-500.0,0.00026027,2]
[391647731,1760716301311,-500.0,0.00026027,2]
[391647732,1760716301320,-746.37,0.00026027,2]
[391647733,1760716301330,-500.0,0.00026027,2]
[391647734,1760716301340,-500.0,0.00026027,2]
[391647735,1760716301352,-500.0,0.00026027,2]
[391647736,1760716301362,-533.82,0.00026027,2]
[391647737,1760716301371,-1139.78,0.00026027,2]
[391647738,1760716301382,-500.0,0.00026027,2]
[391647739,1760716301392,-500.0,0.00026027,2]
[391647740,1760716301402,-632.01,0.00026027,2]
[391647741,1760716301411,-500.0,0.00026027,2]
[391647742,1760716301420,-547.16468902,0.00026027,2]
[391647743,1760716301430,-2068.6,0.00026027,2]
[391647744,1760716301440,-500.0,0.00026027,2]
[391647745,1760716301449,-1257.56,0.00026027,2]
[391647746,1760716301459,-500.0,0.00026027,2]
[391647747,1760716301468,-500.0,0.00026027,2]
[391647748,1760716301477,-500.0,0.00026027,2]
[391647749,1760716301487,-500.0,0.00026027,2]
[391647750,1760716301496,-500.0,0.00026027,2]
[391647751,1760716301505,-714.32,0.00026027,2]
[391647752,1760716301515,-500.0,0.00026027,2]
[391647753,1760716301523,-500.0,0.00026027,2]
[391647754,1760716301534,-613.12742037,0.00026027,2]
[391647755,1760716301543,-3563.61,0.00026027,2]
[391647756,1760716301552,-981.38,0.00026027,2]
[391647757,1760716301562,-1192.11,0.00026027,2]
[391647758,1760716301572,-1753.72,0.00026027,2]
[391647759,1760716301583,-500.0,0.00026027,2]
[391647760,1760716301592,-398.37652161,0.00026027,2]
[391647761,1760716301604,-167.22380337,0.00026027,2]
[391647762,1760716301613,-652.64,0.00026027,2]
[391647763,1760716301623,-1000.0,0.00026027,2]
[391647764,1760716301632,-500.0,0.00026027,2]
[391647765,1760716301644,-500.0,0.00026027,2]
[391647766,1760716301654,-820.53,0.00026027,2]
[391647767,1760716301663,-500.0,0.00026027,2]
[391647768,1760716301673,-500.0,0.00026027,2]
[391647769,1760716301683,-500.0,0.00026027,2]
[391647770,1760716301694,-584.69008414,0.00026027,2]
[391647771,1760716301705,-1319.44,0.00026027,2]
[391647772,1760716301714,-500.0,0.00026027,2]
[391647773,1760716301724,-1052.39,0.00026027,2]
[391647774,1760716301735,-1787.43,0.00026027,2]
[391647775,1760716301745,-500.0,0.00026027,2]
[391647776,1760716301755,-689.83,0.00026027,2]
[391647777,1760716301764,-500.0,0.00026027,2]
[391647778,1760716301773,-945.52,0.00026027,2]
[391647779,1760716301782,-500.0,0.00026027,2]
[391647780,1760716301791,-500.0,0.00026027,2]
[391647781,1760716301802,-1333.69,0.00026027,2]
[391647782,1760716301812,-500.0,0.00026027,2]
[391647783,1760716301821,-500.0,0.00026027,2]
[391647784,1760716301830,-500.0,0.00026027,2]
[391647785,1760716301839,-500.0,0.00026027,2]
[391647786,1760716301850,-500.0,0.00026027,2]
[391647787,1760716301859,-2493.19,0.00026027,2]
[391647788,1760716301868,-500.0,0.00026027,2]
[391647789,1760716301878,-2016.17,0.00026027,2]
[391647790,1760716301887,-4194.44,0.00026027,2]
[391647791,1760716301897,-500.0,0.00026027,2]
[391647792,1760716301907,-500.0,0.00026027,2]
[391647793,1760716301916,-2738.94,0.00026027,2]
[391647794,1760716301925,-2045.71,0.00026027,2]
[391647795,1760716301935,-1485.23,0.00026027,2]
[391647796,1760716301944,-500.0,0.00026027,2]
[391647797,1760716301953,-500.0,0.00026027,2]
[391647798,1760716301963,-774.74,0.00026027,2]
[391647799,1760716302115,-500.0,0.00026027,2]
[391647800,1760716302125,-962.9,0.00026027,2]
[391647801,1760716302135,-500.0,0.00026027,2]
[391647802,1760716302145,-510.4,0.00026027,2]
[391647803,1760716302155,-500.0,0.00026027,2]
[391647804,1760716302165,-342.85897721,0.00026027,2]
[391647805,1760716302175,-500.0,0.00026027,2]
[391647806,1760716302185,-500.0,0.00026027,2]
[391647807,1760716302195,-334.5472959,0.00026035,2]
[391647808,1760716302205,-277.35679052,0.00026035,2]
[391647809,1760716302215,-158.74650766,0.00026082,2]
[391647810,1760716302225,-275.0,0.00026092,2]
[391647811,1760716302235,-275.0,0.00026107,2]
[391647812,1760716302245,-1199.37,0.00026125,2]
[391647813,1760716302256,-1199.37,0.00026125,2]
[391647814,1760716302266,-1199.37,0.00026125,2]
[391647815,1760716302275,-1199.37,0.00026125,2]
[391647816,1760716302286,-1199.37,0.00026125,2]
[391647817,1760716302296,-1000.0,0.000262,2]
[391647818,1760716302306,-158.74650766,0.00026219,2]
[391647819,1760716302316,-209.479651,0.00026221,7]
[391647820,1760716302326,-233.88219816,0.00026262,2]
[391647821,1760716302336,-275.0,0.00026264,7]
[391647822,1760716302346,-1824.293158,0.00026275,5]
[391647823,1760716302357,-153.733574,0.00026275,5]
[391647824,1760716302367,-1836.796906,0.00026275,5]
[391647825,1760716302376,-151.107744,0.00026275,5]
[391647826,1760716302387,-153.733574,0.00026275,5]
[391647827,1760716302397,-2227.955231,0.00026275,5]
[391647828,1760716302407,-212.27872183,0.000263,2]
[391647829,1760716302416,-1327.45,0.00026301,2]
[391647830,1760716302426,-500.0,0.00026301,2]
[391647831,1760716302435,-500.0,0.00026301,2]
[391647832,1760716302445,-500.0,0.00026301,2]
[391647833,1760716302454,-1391.72,0.00026301,2]
[391647834,1760716302463,-834.3,0.00026301,2]
[391647835,1760716302473,-2254.03,0.00026301,2]
[391647836,1760716302482,-500.0,0.00026301,2]
[391647837,1760716302491,-500.0,0.00026301,2]
[391647838,1760716302501,-2608.34,0.00026301,2]
[391647839,1760716302511,-500.0,0.00026301,2]
[391647840,1760716302521,-500.0,0.00026301,2]
[391647841,1760716302530,-500.0,0.00026301,2]
[391647842,1760716302540,-753.74,0.00026301,2]
[391647843,1760716302549,-1761.99,0.00026301,2]
[391647844,1760716302558,-660.97,0.00026301,2]
[391647845,1760716302568,-500.0,0.00026301,2]
[391647846,1760716302578,-500.0,0.00026301,2]
[391647847,1760716302587,-500.0,0.00026301,2]
[391647848,1760716302599,-500.0,0.00026301,2]
[391647849,1760716302609,-500.0,0.00026301,2]
[391647850,1760716302618,-500.0,0.00026301,2]
[391647851,1760716302627,-1320.61,0.00026301,2]
[391647852,1760716302637,-500.0,0.00026301,2]
[391647853,1760716302647,-500.0,0.00026301,2]
[391647854,1760716302660,-772.28,0.00026301,2]
[391647855,1760716302669,-500.0,0.00026301,2]
[391647856,1760716302679,-500.0,0.00026301,2]
[391647857,1760716302689,-1345.39,0.00026301,2]
[391647858,1760716302701,-500.0,0.00026301,2]
[391647859,1760716302711,-2000.0,0.00026301,7]
[391647860,1760716302720,-500.0,0.00026301,2]
[391647861,1760716302730,-500.0,0.00026301,2]
[391647862,1760716302739,-151.0,0.00026301,7]
[391647863,1760716302748,-151.0,0.00026301,7]
[391647864,1760716302758,-155.585607,0.00026301,7]
[391647865,1760716302768,-898.24,0.00026301,2]
[391647866,1760716302778,-151.0,0.00026301,7]
[391647867,1760716302787,-500.0,0.00026301,2]
[391647868,1760716302797,-151.0,0.00026301,7]
[391647869,1760716302807,-151.0,0.00026301,7]
[391647870,1760716302818,-500.0,0.00026301,2]
[391647871,1760716302827,-244.64456573,0.00026301,2]
[391647872,1760716302837,-151.0,0.00026301,7]
[391647873,1760716302848,-600.10796614,0.00026301,2]
[391647874,1760716302859,-151.0,0.00026301,7]
[391647875,1760716302869,-151.0,0.00026301,7]
[391647876,1760716302878,-915.185837,0.00026301,7]
[391647877,1760716302888,-151.0,0.00026301,7]
[391647878,1760716302897,-915.185837,0.00026301,7]
[391647879,1760716302907,-1222.84,0.00026301,2]
[391647880,1760716302917,-915.185837,0.00026301,7]
[391647881,1760716302926,-151.0,0.00026301,7]
[391647882,1760716302936,-915.185833,0.00026301,7]
[391647883,1760716302945,-2109.95,0.00026301,2]
[391647884,1760716302955,-751.84,0.00026301,2]
[391647885,1760716302964,-500.0,0.00026301,2]
[391647886,1760716302974,-500.0,0.00026301,2]
[391647887,1760716302983,-500.0,0.00026301,2]
[391647888,1760716302993,-500.0,0.00026301,2]
[391647889,1760716303003,-1024.46,0.00026301,2]
[391647890,1760716303012,-833.66,0.00026301,2]
[391647891,1760716303022,-1852.0,0.00026301,2]
[391647892,1760716303031,-500.0,0.00026301,2]
[391647893,1760716303041,-500.0,0.00026301,2]
[391647894,1760716303050,-500.0,0.00026301,2]
[391647895,1760716303060,-500.0,0.00026301,2]
[391647896,1760716303069,-500.0,0.00026301,2]
[391647897,1760716303079,-2060.09,0.00026301,2]
[391647898,1760716303089,-500.0,0.00026301,2]
[391647899,1760716303101,-500.0,0.00026301,2]
[391647900,1760716303110,-500.0,0.00026301,2]
[391647901,1760716303119,-500.0,0.00026301,2]
[391647902,1760716303129,-500.0,0.00026301,2]
[391647903,1760716303138,-500.0,0.00026301,2]
[391647904,1760716303148,-529.49,0.00026301,2]
[391647905,1760716303157,-500.0,0.00026301,2]
[391647906,1760716303167,-500.0,0.00026301,2]
[391647907,1760716303176,-1709.46,0.00026301,2]
[391647908,1760716303186,-712.66,0.00026301,2]
[391647909,1760716303195,-500.0,0.00026301,2]
[391647910,1760716303205,-500.0,0.00026301,2]
[391647911,1760716303214,-609.73,0.00026301,2]
[391647912,1760716303223,-500.0,0.00026301,2]
[391647913,1760716303233,-1708.64,0.00026301,2]
[391647914,1760716303242,-1031.44,0.00026301,2]
[391647915,1760716303252,-360.86650252,0.00026301,2]
[391647916,1760716303261,-500.0,0.00026301,2]
[391647917,1760716303271,-500.0,0.00026301,2]
[391647918,1760716303281,-562.80826602,0.00026301,2]
[391647919,1760716303291,-500.0,0.00026301,2]
[391647920,1760716303306,-500.0,0.00026301,2]
[391647921,1760716303316,-500.0,0.00026301,2]
[391647922,1760716303326,-559.04,0.00026301,2]
[391647923,1760716303337,-500.0,0.00026301,2]
[391647924,1760716303347,-500.0,0.00026301,2]
[391647925,1760716303357,-500.0,0.00026301,2]
[391647926,1760716303367,-500.0,0.00026301,2]
[391647927,1760716303377,-432.33116701,0.00026301,2]
[391647928,1760716303386,-453.82269403,0.00026301,2]
[391647929,1760716303396,-500.0,0.00026301,2]
[391647930,1760716303406,-500.0,0.00026301,2]
[391647931,1760716303416,-500.0,0.00026301,2]
[391647932,1760716303425,-500.0,0.00026301,2]
[391647933,1760716303435,-500.0,0.00026301,2]
[391647934,1760716303444,-502.4,0.00026301,2]
[391647935,1760716303453,-376.10077841,0.00026301,2]
[391647936,1760716303462,-500.0,0.00026301,2]
[391647937,1760716303472,-500.0,0.00026301,2]
[391647938,1760716303481,-500.86711373,0.00026301,2]
[391647939,1760716303490,-619.47,0.00026301,2]
[391647940,1760716303500,-667.35,0.00026301,2]
[391647941,1760716303510,-1012.0,0.00026301,2]
[391647942,1760716303521,-2301.51,0.00026301,2]
[391647943,1760716303531,-1812.54,0.00026301,2]
[391647944,1760716303540,-229.64236471,0.00026301,2]
[391647945,1760716303551,-500.0,0.00026301,2]
[391647946,1760716303560,-1000.0,0.00026301,2]
[391647947,1760716303570,-500.0,0.00026301,2]
[391647948,1760716303579,-843.1,0.00026301,2]
[391647949,1760716303589,-500.0,0.00026301,2]
[391647950,1760716303599,-1602.13,0.00026301,2]
[391647951,1760716303608,-500.0,0.00026301,2]
[391647952,1760716303617,-746.37,0.00026301,2]
[391647953,1760716303626,-500.0,0.00026301,2]
[391647954,1760716303635,-500.0,0.00026301,2]
[391647955,1760716303646,-500.0,0.00026301,2]
[391647956,1760716303658,-500.0,0.00026301,2]
[391647957,1760716303667,-533.82,0.00026301,2]
[391647958,1760716303676,-1139.78,0.00026301,2]
[391647959,1760716303687,-500.0,0.00026301,2]
[391647960,1760716303696,-500.0,0.00026301,2]
[391647961,1760716303706,-632.01,0.00026301,2]
[391647962,1760716303715,-500.0,0.00026301,2]
[391647963,1760716303724,-2068.6,0.00026301,2]
[391647964,1760716303735,-500.0,0.00026301,2]
[391647965,1760716303744,-1257.56,0.00026301,2]
[391647966,1760716303753,-500.0,0.00026301,2]
[391647967,1760716303763,-500.0,0.00026301,2]
[391647968,1760716303772,-500.0,0.00026301,2]
[391647969,1760716303781,-500.0,0.00026301,2]
[391647970,1760716303790,-277.06318539,0.00026301,2]
[391647971,1760716303799,-714.32,0.00026301,2]
[391647972,1760716303808,-500.0,0.00026301,2]
[391647973,1760716303817,-500.0,0.00026301,2]
[391647974,1760716303827,-3563.61,0.00026301,2]
[391647975,1760716303836,-981.38,0.00026301,2]
[391647976,1760716303846,-1192.11,0.00026301,2]
[391647977,1760716303857,-1753.72,0.00026301,2]
[391647978,1760716303866,-500.0,0.00026301,2]
[391647979,1760716303875,-652.64,0.00026301,2]
[391647980,1760716303884,-1000.0,0.00026301,2]
[391647981,1760716303894,-369.14030645,0.00026301,2]
[391647982,1760716303904,-820.53,0.00026301,2]
[391647983,1760716303914,-500.0,0.00026301,2]
[391647984,1760716303923,-500.0,0.00026301,2]
[391647985,1760716303932,-500.0,0.00026301,2]
[391647986,1760716303941,-1319.44,0.00026301,2]
[391647987,1760716303951,-1052.39,0.00026301,2]
[391647988,1760716303961,-1787.43,0.00026301,2]
[391647989,1760716303970,-500.0,0.00026301,2]
[391647990,1760716303979,-689.83,0.00026301,2]
[391647991,1760716303988,-500.0,0.00026301,2]
[391647992,1760716303997,-945.52,0.00026301,2]
[391647993,1760716304007,-500.0,0.00026301,2]
[391647994,1760716304016,-1333.69,0.00026301,2]
[391647995,1760716304025,-500.0,0.00026301,2]
[391647996,1760716304035,-500.0,0.00026301,2]
[391647997,1760716304044,-500.0,0.00026301,2]
[391647998,1760716304054,-500.0,0.00026301,2]
[391647999,1760716304063,-500.0,0.00026301,2]
[391648000,1760716304073,-2493.19,0.00026301,2]
[391648001,1760716304084,-500.0,0.00026301,2]
[391648002,1760716304093,-2016.17,0.00026301,2]
[391648003,1760716304105,-4194.44,0.00026301,2]
[391648004,1760716304114,-500.0,0.00026301,2]
[391648005,1760716304124,-500.0,0.00026301,2]
[391648006,1760716304134,-2738.94,0.00026301,2]
[391648007,1760716304144,-2045.71,0.00026301,2]
[391648008,1760716304154,-1485.23,0.00026301,2]
[391648009,1760716304164,-500.0,0.00026301,2]
[391648010,1760716304174,-500.0,0.00026301,2]
[391648011,1760716304183,-774.74,0.00026301,2]
[391648012,1760716304192,-500.0,0.00026301,2]
[391648013,1760716304202,-962.9,0.00026301,2]
[391648014,1760716304212,-500.0,0.00026301,2]
[391648015,1760716304222,-510.4,0.00026301,2]
[391648016,1760716304232,-500.0,0.00026301,2]
[391648017,1760716304242,-500.0,0.00026301,2]
[391648018,1760716304251,-500.0,0.00026301,2]
[391648019,1760716304261,-526.65,0.00026301,2]
[391648020,1760716304271,-298.09744742,0.00026319,2]
[391648021,1760716304281,-158.74650766,0.00026329,2]
[391648022,1760716304291,-275.0,0.0002634,2]
[391648023,1760716304300,-496.57,0.00026401,30]
[391648024,1760716304310,-275.0,0.00026452,2]
[391648025,1760716304319,-158.74650766,0.00026466,2]
[391648026,1760716304329,-500.0,0.00026499,2]
[391648027,1760716304339,-500.0,0.00026499,2]
[391648028,1760716304348,-1118.49,0.00026499,2]
[391648029,1760716304359,-1118.49,0.00026499,2]
[391648030,1760716304368,-1118.49,0.00026499,2]
[391648031,1760716304378,-1118.49,0.00026499,2]
[391648032,1760716304388,-1118.66268761,0.00026499,2]
[391648033,1760716304398,-500.0,0.00026499,2]
[391648034,1760716304407,-579.22,0.00026499,2]
[391648035,1760716304416,-579.22,0.00026499,2]
[391648036,1760716304425,-579.22,0.00026499,2]
[391648037,1760716304435,-579.22,0.00026499,2]
[391648038,1760716304445,-579.29571642,0.00026499,2]
[391648039,1760716304454,-634.91,0.00026499,2]
[391648040,1760716304464,-500.0,0.00026499,2]
[391648041,1760716304473,-500.0,0.00026499,2]
[391648042,1760716304483,-500.0,0.00026499,2]
[391648043,1760716304492,-500.0,0.00026499,2]
[391648044,1760716304502,-224.03650012,0.00026499,2]
[391648045,1760716304511,-52018.89405217,0.000265,2]
[391648046,1760716304520,-390.39619011,0.00026523,30]
[391648047,1760716304529,-275.0,0.00026539,2]
[391648048,1760716304539,-1327.45,0.00026575,2]
[391648049,1760716304548,-500.0,0.00026575,2]
[391648050,1760716304556,-500.0,0.00026575,2]
[391648051,1760716304566,-500.0,0.00026575,2]
[391648052,1760716304575,-1391.72,0.00026575,2]
[391648053,1760716304584,-834.3,0.00026575,2]
[391648054,1760716304594,-2254.03,0.00026575,2]
[391648055,1760716304604,-500.0,0.00026575,2]
[391648056,1760716304613,-500.0,0.00026575,2]
[391648057,1760716304622,-2608.34,0.00026575,2]
[391648058,1760716304632,-500.0,0.00026575,2]
[391648059,1760716304642,-500.0,0.00026575,2]
[391648060,1760716304798,-500.0,0.00026575,2]
[391648061,1760716304808,-753.74,0.00026575,2]
[391648062,1760716304818,-1761.99,0.00026575,2]
[391648063,1760716304828,-660.97,0.00026575,2]
[391648064,1760716304837,-500.0,0.00026575,2]
[391648065,1760716304846,-500.0,0.00026575,2]
[391648066,1760716304858,-500.0,0.00026575,2]
[391648067,1760716304867,-500.0,0.00026575,2]
[391648068,1760716304877,-500.0,0.00026575,2]
[391648069,1760716304887,-500.0,0.00026575,2]
[391648070,1760716304896,-1320.61,0.00026575,2]
[391648071,1760716304906,-500.0,0.00026575,2]
[391648072,1760716304916,-582.00823367,0.00026575,2]
[391648073,1760716304925,-772.28,0.00026575,2]
[391648074,1760716304935,-500.0,0.00026575,2]
[391648075,1760716304944,-500.0,0.00026575,2]
[391648076,1760716304954,-1345.39,0.00026575,2]
[391648077,1760716304964,-500.0,0.00026575,2]
[391648078,1760716304973,-2000.0,0.00026575,7]
[391648079,1760716304983,-500.0,0.00026575,2]
[391648080,1760716304993,-181.06432784,0.00026575,2]
[391648081,1760716305002,-898.24,0.00026575,2]
[391648082,1760716305011,-500.0,0.00026575,2]
[391648083,1760716305021,-500.0,0.00026575,2]
[391648084,1760716305031,-1222.84,0.00026575,2]
[391648085,1760716305041,-2109.95,0.00026575,2]
[391648086,1760716305050,-751.84,0.00026575,2]
[391648087,1760716305060,-500.0,0.00026575,2]
[391648088,1760716305070,-500.0,0.00026575,2]
[391648089,1760716305080,-627.3,0.00026575,2]
[391648090,1760716305089,-500.0,0.00026575,2]
[391648091,1760716305101,-1024.46,0.00026575,2]
[391648092,1760716305111,-833.66,0.00026575,2]
[391648093,1760716305120,-1852.0,0.00026575,2]
[391648094,1760716305130,-500.0,0.00026575,2]
[391648095,1760716305141,-500.0,0.00026575,2]
[391648096,1760716305151,-500.0,0.00026575,2]
[391648097,1760716305161,-500.0,0.00026575,2]
[391648098,1760716305171,-500.0,0.00026575,2]
[391648099,1760716305181,-2060.09,0.00026575,2]
[391648100,1760716305191,-500.0,0.00026575,2]
[391648101,1760716305200,-500.0,0.00026575,2]
[391648102,1760716305210,-500.0,0.00026575,2]
[391648103,1760716305220,-500.0,0.00026575,2]
[391648104,1760716305230,-500.0,0.00026575,2]
[391648105,1760716305240,-500.0,0.00026575,2]
[391648106,1760716305250,-529.49,0.00026575,2]
[391648107,1760716305260,-500.0,0.00026575,2]
[391648108,1760716305271,-500.0,0.00026575,2]
[391648109,1760716305281,-1709.46,0.00026575,2]
[391648110,1760716305291,-712.66,0.00026575,2]
[391648111,1760716305301,-500.0,0.00026575,2]
[391648112,1760716305311,-500.0,0.00026575,2]
[391648113,1760716305321,-609.73,0.00026575,2]
[391648114,1760716305331,-500.0,0.00026575,2]
[391648115,1760716305341,-1708.64,0.00026575,2]
[391648116,1760716305352,-1031.44,0.00026575,2]
[391648117,1760716305362,-567.14541344,0.00026575,2]
[391648118,1760716305372,-500.0,0.00026575,2]
[391648119,1760716305381,-500.0,0.00026575,2]
[391648120,1760716305391,-500.0,0.00026575,2]
[391648121,1760716305401,-500.0,0.00026575,2]
[391648122,1760716305411,-559.04,0.00026575,2]
[391648123,1760716305422,-500.0,0.00026575,2]
[391648124,1760716305432,-500.0,0.00026575,2]
[391648125,1760716305442,-500.0,0.00026575,2]
[391648126,1760716305452,-500.0,0.00026575,2]
[391648127,1760716305461,-500.0,0.00026575,2]
[391648128,1760716305471,-500.0,0.00026575,2]
[391648129,1760716305480,-500.0,0.00026575,2]
[391648130,1760716305489,-500.0,0.00026575,2]
[391648131,1760716305499,-500.0,0.00026575,2]
[391648132,1760716305508,-502.4,0.00026575,2]
[391648133,1760716305517,-500.0,0.00026575,2]
[391648134,1760716305527,-500.0,0.00026575,2]
[391648135,1760716305536,-619.47,0.00026575,2]
[391648136,1760716305545,-667.35,0.00026575,2]
[391648137,1760716305555,-1012.0,0.00026575,2]
[391648138,1760716305565,-2301.51,0.00026575,2]
[391648139,1760716305574,-1812.54,0.00026575,2]
[391648140,1760716305584,-255.58486627,0.00026575,2]
[391648141,1760716305593,-1000.0,0.00026575,2]
[391648142,1760716305603,-500.0,0.00026575,2]
[391648143,1760716305613,-843.1,0.00026575,2]
[391648144,1760716305622,-500.0,0.00026575,2]
[391648145,1760716305632,-1602.13,0.00026575,2]
[391648146,1760716305645,-500.0,0.00026575,2]
[391648147,1760716305654,-746.37,0.00026575,2]
[391648148,1760716305663,-286.8235369,0.00026575,2]
[391648149,1760716305673,-500.0,0.00026575,2]
[391648150,1760716305683,-500.0,0.00026575,2]